[Event "Late-Titled-Tuesday-Blitz-January-23-2024"]
[Site "Chess.com"]
[Date "2024.01.23"]
[Round "4"]
[White "shimastream"]
[Black "Fonsofan"]
[Result "1-0"]
[WhiteElo "3002"]
[BlackElo "2642"]
[TimeControl "180+1"]
[EndTime "14:32:10 PST"]
[Termination "shimastream won by resignation"]

1. d4 {[%clk 0:03:00.9]} 1... Nf6 {[%clk 0:02:41]} 2. Bf4 {[%clk 0:02:59.2]}
2... d5 {[%clk 0:02:36]} 3. e3 {[%clk 0:02:58.5]} 3... c6 {[%clk 0:02:33.7]} 4.
c4 {[%clk 0:02:57.6]} 4... Bf5 {[%clk 0:02:29.3]} 5. Qb3 {[%clk 0:02:57.2]} 5...
Qb6 {[%clk 0:02:29.2]} 6. c5 {[%clk 0:02:57.7]} 6... Qxb3 {[%clk 0:02:29.6]} 7.
axb3 {[%clk 0:02:58.6]} 7... Bxb1 {[%clk 0:02:29.9]} 8. Rxb1 {[%clk 0:02:58.5]}
8... a6 {[%clk 0:02:30.6]} 9. b4 {[%clk 0:02:58.4]} 9... Nh5 {[%clk 0:02:30.2]}
10. Bc7 {[%clk 0:02:56.3]} 10... Kd7 {[%clk 0:02:26]} 11. Be5 {[%clk 0:02:55.9]}
11... f6 {[%clk 0:02:20.1]} 12. Bxb8 {[%clk 0:02:55.3]} 12... Rxb8 {[%clk
0:02:21]} 13. g4 {[%clk 0:02:55.3]} 1-0

[Event "Late-Titled-Tuesday-Blitz-January-23-2024"]
[Site "Chess.com"]
[Date "2024.01.23"]
[Round "4"]
[White "Ajedrecista3000"]
[Black "chessflav"]
[Result "1-0"]
[WhiteElo "2576"]
[BlackElo "2312"]
[TimeControl "180+1"]
[EndTime "14:32:37 PST"]
[Termination "Ajedrecista3000 won by resignation"]

1. c4 {[%clk 0:03:00.9]} 1... e5 {[%clk 0:02:59.6]} 2. g3 {[%clk 0:03:00.5]}
2... Nc6 {[%clk 0:03:00.5]} 3. Bg2 {[%clk 0:03:00.6]} 3... g6 {[%clk 0:03:00.3]}
4. Nc3 {[%clk 0:02:58.8]} 4... Bg7 {[%clk 0:03:00.7]} 5. Rb1 {[%clk 0:02:56.3]}
5... a5 {[%clk 0:02:47.4]} 6. a3 {[%clk 0:02:55.7]} 6... d6 {[%clk 0:02:44.8]}
7. h4 {[%clk 0:02:56]} 7... Be6 {[%clk 0:02:44.3]} 8. d3 {[%clk 0:02:54.6]} 8...
h6 {[%clk 0:02:42.3]} 9. Nf3 {[%clk 0:02:49.9]} 9... Qd7 {[%clk 0:02:40.6]} 10.
Nd2 {[%clk 0:02:39.1]} 10... Nge7 {[%clk 0:02:34.2]} 11. Nd5 {[%clk 0:02:39.2]}
11... Nd8 {[%clk 0:02:34.4]} 12. b4 {[%clk 0:02:35.4]} 12... axb4 {[%clk
0:02:32]} 13. axb4 {[%clk 0:02:36.3]} 13... c6 {[%clk 0:02:31.7]} 14. Nb6 {[%clk
0:02:36.2]} 14... Qc7 {[%clk 0:02:24.1]} 15. Nxa8 {[%clk 0:02:36.3]} 15... b5
{[%clk 0:02:19.3]} 16. Nxc7+ {[%clk 0:02:35.9]} 1-0

[Event "Late-Titled-Tuesday-Blitz-January-23-2024"]
[Site "Chess.com"]
[Date "2024.01.23"]
[Round "4"]
[White "IgorBjelobrk"]
[Black "Kombinator01"]
[Result "1-0"]
[WhiteElo "2629"]
[BlackElo "2458"]
[TimeControl "180+1"]
[EndTime "14:33:11 PST"]
[Termination "IgorBjelobrk won by resignation"]

1. d4 {[%clk 0:02:55.5]} 1... Nf6 {[%clk 0:02:58.7]} 2. c4 {[%clk 0:02:54.7]}
2... e6 {[%clk 0:02:58.9]} 3. g3 {[%clk 0:02:54.6]} 3... d5 {[%clk 0:02:56.5]}
4. Bg2 {[%clk 0:02:54.6]} 4... h6 {[%clk 0:02:52.5]} 5. Nf3 {[%clk 0:02:54]}
5... Bd6 {[%clk 0:02:52.3]} 6. O-O {[%clk 0:02:52.6]} 6... O-O {[%clk
0:02:51.8]} 7. Qc2 {[%clk 0:02:44.3]} 7... Nc6 {[%clk 0:02:47.8]} 8. b3 {[%clk
0:02:38.9]} 8... dxc4 {[%clk 0:02:45.2]} 9. bxc4 {[%clk 0:02:38.8]} 9... e5
{[%clk 0:02:44.9]} 10. e3 {[%clk 0:02:34.9]} 10... Bg4 {[%clk 0:02:36.8]} 11.
Nbd2 {[%clk 0:02:32.5]} 11... e4 {[%clk 0:02:00.8]} 12. Nxe4 {[%clk 0:02:23.3]}
12... Nxe4 {[%clk 0:02:00.7]} 13. Qxe4 {[%clk 0:02:24.1]} 13... Qf6 {[%clk
0:01:52.2]} 14. Qxg4 {[%clk 0:02:22.7]} 1-0

[Event "Late-Titled-Tuesday-Blitz-January-23-2024"]
[Site "Chess.com"]
[Date "2024.01.23"]
[Round "4"]
[White "subham777"]
[Black "jup1978"]
[Result "1-0"]
[WhiteElo "2545"]
[BlackElo "2398"]
[TimeControl "180+1"]
[EndTime "14:33:22 PST"]
[Termination "subham777 won by resignation"]

1. e4 {[%clk 0:03:00.9]} 1... e5 {[%clk 0:02:52.3]} 2. Nf3 {[%clk 0:02:52.5]}
2... Nc6 {[%clk 0:02:52.6]} 3. Bc4 {[%clk 0:02:51.9]} 3... Be7 {[%clk
0:02:51.1]} 4. c3 {[%clk 0:02:52]} 4... Nf6 {[%clk 0:02:49.6]} 5. d3 {[%clk
0:02:52.4]} 5... O-O {[%clk 0:02:48.8]} 6. O-O {[%clk 0:02:51.7]} 6... d5 {[%clk
0:02:48.1]} 7. exd5 {[%clk 0:02:51.5]} 7... Nxd5 {[%clk 0:02:49]} 8. Re1 {[%clk
0:02:51.7]} 8... Bf6 {[%clk 0:02:49.2]} 9. Nbd2 {[%clk 0:02:49.3]} 9... Re8
{[%clk 0:02:46]} 10. Ne4 {[%clk 0:02:46.6]} 10... Bg4 {[%clk 0:02:41.7]} 11. h3
{[%clk 0:02:45.5]} 11... Bxf3 {[%clk 0:02:40]} 12. Qxf3 {[%clk 0:02:45.2]} 12...
Nb6 {[%clk 0:02:40.3]} 13. Bb3 {[%clk 0:02:42.7]} 13... Na5 {[%clk 0:02:35.1]}
14. Bc2 {[%clk 0:02:40.7]} 14... Be7 {[%clk 0:02:32.8]} 15. Be3 {[%clk
0:02:12.6]} 15... Nc6 {[%clk 0:02:30.3]} 16. Bb3 {[%clk 0:01:58.2]} 16... Bf6
{[%clk 0:02:30.3]} 17. Rad1 {[%clk 0:01:54.9]} 17... Nd5 {[%clk 0:02:21.6]} 18.
Bxd5 {[%clk 0:01:53.1]} 1-0

[Event "Late-Titled-Tuesday-Blitz-January-23-2024"]
[Site "Chess.com"]
[Date "2024.01.23"]
[Round "4"]
[White "SanchezKelvin"]
[Black "IlanSchnaider"]
[Result "0-1"]
[WhiteElo "2547"]
[BlackElo "2762"]
[TimeControl "180+1"]
[EndTime "14:33:53 PST"]
[Termination "IlanSchnaider won by checkmate"]

1. e4 {[%clk 0:03:00.9]} 1... c5 {[%clk 0:02:59.8]} 2. Nf3 {[%clk 0:03:00.7]}
2... d6 {[%clk 0:03:00.5]} 3. d4 {[%clk 0:03:01.1]} 3... cxd4 {[%clk 0:03:01.4]}
4. Nxd4 {[%clk 0:03:01.7]} 4... Nf6 {[%clk 0:03:02.1]} 5. Nc3 {[%clk 0:03:01.9]}
5... a6 {[%clk 0:03:02.7]} 6. Bg5 {[%clk 0:03:01.8]} 6... Nbd7 {[%clk
0:03:03.1]} 7. f4 {[%clk 0:03:01]} 7... Qc7 {[%clk 0:03:03]} 8. Qf3 {[%clk
0:03:00.6]} 8... h6 {[%clk 0:03:03.2]} 9. Bxf6 {[%clk 0:02:59.3]} 9... Nxf6
{[%clk 0:03:04.1]} 10. f5 {[%clk 0:02:59.5]} 10... Qc5 {[%clk 0:03:03.8]} 11.
O-O-O {[%clk 0:02:59]} 11... g5 {[%clk 0:03:04.5]} 12. fxg6 {[%clk 0:02:57.9]}
12... Bg4 {[%clk 0:03:05.2]} 13. gxf7+ {[%clk 0:02:58]} 13... Kxf7 {[%clk
0:03:06]} 14. Qd3 {[%clk 0:02:57.9]} 14... Bxd1 {[%clk 0:03:06.6]} 15. Nxd1
{[%clk 0:02:57.7]} 15... Bg7 {[%clk 0:03:06.2]} 16. Nb3 {[%clk 0:02:49.3]} 16...
Qg5+ {[%clk 0:03:01.9]} 17. Kb1 {[%clk 0:02:48]} 17... Rhc8 {[%clk 0:02:58.5]}
18. Be2 {[%clk 0:02:46.9]} 18... Kg8 {[%clk 0:02:57.7]} 19. Ne3 {[%clk
0:02:37.5]} 19... Qe5 {[%clk 0:02:53.5]} 20. c3 {[%clk 0:02:03.4]} 20... Qxe4
{[%clk 0:02:51.5]} 21. Qxe4 {[%clk 0:02:03.2]} 21... Nxe4 {[%clk 0:02:52.4]} 22.
Bf3 {[%clk 0:02:01.1]} 22... Nc5 {[%clk 0:02:45.9]} 23. Na5 {[%clk 0:01:54.6]}
23... e6 {[%clk 0:02:36.8]} 24. Nxb7 {[%clk 0:01:40.2]} 24... Rab8 {[%clk
0:02:34.7]} 25. Nxd6 {[%clk 0:01:40.3]} 25... Bxc3 {[%clk 0:02:26.9]} 26. Nxc8
{[%clk 0:01:37.6]} 26... Rxb2+ {[%clk 0:02:26.7]} 27. Kc1 {[%clk 0:01:35.7]}
27... Nd3+ {[%clk 0:02:27.1]} 28. Kd1 {[%clk 0:01:33.5]} 28... Rd2# {[%clk
0:02:28]} 0-1

[Event "Late-Titled-Tuesday-Blitz-January-23-2024"]
[Site "Chess.com"]
[Date "2024.01.23"]
[Round "4"]
[White "RodokininEV"]
[Black "Sargsyan_Shant"]
[Result "0-1"]
[WhiteElo "2608"]
[BlackElo "2913"]
[TimeControl "180+1"]
[EndTime "14:34:12 PST"]
[Termination "Sargsyan_Shant won by resignation"]

1. e4 {[%clk 0:03:00.9]} 1... g6 {[%clk 0:03:00]} 2. d4 {[%clk 0:03:00.2]} 2...
Nf6 {[%clk 0:02:59.3]} 3. Nc3 {[%clk 0:02:59.7]} 3... d5 {[%clk 0:02:59.6]} 4.
exd5 {[%clk 0:02:59.6]} 4... Nxd5 {[%clk 0:02:59.9]} 5. Nxd5 {[%clk 0:02:59.6]}
5... Qxd5 {[%clk 0:03:00.3]} 6. Nf3 {[%clk 0:03:00]} 6... Bg7 {[%clk 0:03:00.7]}
7. Be2 {[%clk 0:02:55.6]} 7... O-O {[%clk 0:03:00.8]} 8. O-O {[%clk 0:02:55]}
8... Rd8 {[%clk 0:03:01.4]} 9. c3 {[%clk 0:02:52.8]} 9... Bf5 {[%clk 0:02:59.3]}
10. Be3 {[%clk 0:02:47.3]} 10... Nd7 {[%clk 0:02:53.1]} 11. Qa4 {[%clk
0:02:45.6]} 11... c6 {[%clk 0:02:50.2]} 12. Rad1 {[%clk 0:02:43]} 12... Nb6
{[%clk 0:02:48.5]} 13. Qb3 {[%clk 0:02:41]} 13... Qxb3 {[%clk 0:02:46.3]} 14.
axb3 {[%clk 0:02:41.9]} 14... Bc2 {[%clk 0:02:47.2]} 15. Ra1 {[%clk 0:02:38.3]}
15... Bxb3 {[%clk 0:02:47.1]} 16. Bf4 {[%clk 0:02:38.3]} 16... Bc4 {[%clk
0:02:44.1]} 17. Rfe1 {[%clk 0:02:27.8]} 17... Bxe2 {[%clk 0:02:43.4]} 18. Rxe2
{[%clk 0:02:28.7]} 18... Nd5 {[%clk 0:02:43.7]} 19. Bg5 {[%clk 0:02:22.9]} 19...
Rd7 {[%clk 0:02:39]} 20. h4 {[%clk 0:02:19]} 20... e6 {[%clk 0:02:38.7]} 21. Bd2
{[%clk 0:02:13.2]} 21... b5 {[%clk 0:02:38.9]} 22. Ra6 {[%clk 0:02:12.1]} 22...
Nb6 {[%clk 0:02:29.1]} 23. Bc1 {[%clk 0:02:08.3]} 23... Rc8 {[%clk 0:02:26.5]}
24. Ne5 {[%clk 0:02:07.4]} 24... Bxe5 {[%clk 0:02:26.4]} 25. Rxe5 {[%clk
0:02:08.3]} 25... Nd5 {[%clk 0:02:23.9]} 26. Kf1 {[%clk 0:02:00.5]} 26... h5
{[%clk 0:02:23.8]} 27. Bd2 {[%clk 0:01:54.2]} 27... c5 {[%clk 0:02:19.5]} 28.
dxc5 {[%clk 0:01:52.4]} 28... Rxc5 {[%clk 0:02:20.4]} 29. Re1 {[%clk 0:01:48.1]}
29... Nc7 {[%clk 0:02:14.2]} 30. Be3 {[%clk 0:01:43.3]} 30... Nxa6 {[%clk
0:02:14.3]} 0-1

[Event "Late-Titled-Tuesday-Blitz-January-23-2024"]
[Site "Chess.com"]
[Date "2024.01.23"]
[Round "4"]
[White "SergioMoralesG"]
[Black "dsanchez1973"]
[Result "1-0"]
[WhiteElo "2464"]
[BlackElo "2171"]
[TimeControl "180+1"]
[EndTime "14:34:30 PST"]
[Termination "SergioMoralesG won by resignation"]

1. d4 {[%clk 0:03:00.9]} 1... d5 {[%clk 0:02:59.7]} 2. c4 {[%clk 0:03:00.9]}
2... c6 {[%clk 0:02:59.6]} 3. Nf3 {[%clk 0:03:01.2]} 3... e6 {[%clk 0:02:59.5]}
4. Qc2 {[%clk 0:03:00.3]} 4... Nf6 {[%clk 0:02:59.1]} 5. Bf4 {[%clk 0:02:55.9]}
5... Bd6 {[%clk 0:02:58.2]} 6. e3 {[%clk 0:02:52.7]} 6... O-O {[%clk 0:02:53.6]}
7. Nc3 {[%clk 0:02:49.9]} 7... a6 {[%clk 0:02:50.1]} 8. Bg5 {[%clk 0:02:48]}
8... h6 {[%clk 0:02:48.2]} 9. Bh4 {[%clk 0:02:47.7]} 9... Nbd7 {[%clk
0:02:47.4]} 10. c5 {[%clk 0:02:42]} 10... Be7 {[%clk 0:02:47]} 11. Bd3 {[%clk
0:02:38.3]} 11... Re8 {[%clk 0:02:44.4]} 12. O-O {[%clk 0:02:37.1]} 12... Nf8
{[%clk 0:02:44.2]} 13. b4 {[%clk 0:02:36.6]} 13... N6d7 {[%clk 0:02:42.3]} 14.
Bg3 {[%clk 0:02:35.8]} 14... Bf6 {[%clk 0:02:40]} 15. Ne5 {[%clk 0:02:30.6]}
15... Nxe5 {[%clk 0:02:32.4]} 16. dxe5 {[%clk 0:02:28.9]} 16... Be7 {[%clk
0:02:30.9]} 17. Na4 {[%clk 0:02:28.9]} 17... Nd7 {[%clk 0:02:28.2]} 18. a3
{[%clk 0:02:24.7]} 18... Qc7 {[%clk 0:02:26.6]} 19. f4 {[%clk 0:02:22.9]} 19...
h5 {[%clk 0:02:22.8]} 20. Rf3 {[%clk 0:01:58.3]} 20... Nf8 {[%clk 0:02:17.8]}
21. Bf2 {[%clk 0:01:54.3]} 21... f6 {[%clk 0:02:11.8]} 22. Bg6 {[%clk
0:01:50.3]} 22... Rd8 {[%clk 0:01:59.4]} 23. Bxh5 {[%clk 0:01:32.8]} 23... fxe5
{[%clk 0:01:59.1]} 24. fxe5 {[%clk 0:01:33.1]} 24... Qxe5 {[%clk 0:01:59.2]} 25.
Bf7+ {[%clk 0:01:33.3]} 25... Kh8 {[%clk 0:01:58.1]} 26. Rh3+ {[%clk 0:01:32.3]}
1-0

[Event "Late-Titled-Tuesday-Blitz-January-23-2024"]
[Site "Chess.com"]
[Date "2024.01.23"]
[Round "4"]
[White "Balla_Tamas"]
[Black "MajorCoast"]
[Result "1-0"]
[WhiteElo "2454"]
[BlackElo "2223"]
[TimeControl "180+1"]
[EndTime "14:34:37 PST"]
[Termination "Balla_Tamas won by checkmate"]

1. e4 {[%clk 0:03:00.9]} 1... c5 {[%clk 0:02:59.6]} 2. c3 {[%clk 0:02:55.7]}
2... Qa5 {[%clk 0:02:58.6]} 3. Nf3 {[%clk 0:02:48.7]} 3... Nc6 {[%clk 0:02:57]}
4. Be2 {[%clk 0:02:44.9]} 4... g6 {[%clk 0:02:53.8]} 5. O-O {[%clk 0:02:44.8]}
5... Bg7 {[%clk 0:02:53.6]} 6. d4 {[%clk 0:02:45.4]} 6... cxd4 {[%clk
0:02:50.2]} 7. cxd4 {[%clk 0:02:46.3]} 7... d5 {[%clk 0:02:49.9]} 8. exd5 {[%clk
0:02:45.7]} 8... Qxd5 {[%clk 0:02:49.2]} 9. Nc3 {[%clk 0:02:46.3]} 9... Qa5
{[%clk 0:02:46.1]} 10. d5 {[%clk 0:02:46.7]} 10... Ne5 {[%clk 0:02:42.2]} 11.
Nxe5 {[%clk 0:02:44.2]} 11... Bxe5 {[%clk 0:02:43.1]} 12. Bb5+ {[%clk
0:02:44.1]} 12... Bd7 {[%clk 0:02:36.9]} 13. Bxd7+ {[%clk 0:02:44.2]} 13... Kxd7
{[%clk 0:02:37.8]} 14. Qg4+ {[%clk 0:02:44.5]} 14... f5 {[%clk 0:02:35.8]} 15.
Qf3 {[%clk 0:02:41.1]} 15... Qc7 {[%clk 0:02:34.3]} 16. h3 {[%clk 0:02:37.7]}
16... a6 {[%clk 0:02:34.7]} 17. Be3 {[%clk 0:02:31.4]} 17... Nf6 {[%clk
0:02:33]} 18. Rad1 {[%clk 0:02:30.2]} 18... Bxc3 {[%clk 0:02:25]} 19. bxc3
{[%clk 0:02:28.2]} 19... Qxc3 {[%clk 0:02:24.9]} 20. d6 {[%clk 0:02:28.6]} 20...
Ne4 {[%clk 0:02:11.2]} 21. dxe7+ {[%clk 0:02:22.2]} 21... Kxe7 {[%clk
0:02:12.1]} 22. Rfe1 {[%clk 0:02:10.1]} 22... Qc6 {[%clk 0:02:06.3]} 23. Rc1
{[%clk 0:02:06.5]} 23... Qb5 {[%clk 0:01:50.4]} 24. Bg5+ {[%clk 0:01:58.8]}
24... Ke6 {[%clk 0:01:43.3]} 25. Rxe4+ {[%clk 0:01:49.3]} 25... fxe4 {[%clk
0:01:40.8]} 26. Qf6+ {[%clk 0:01:49.5]} 26... Kd5 {[%clk 0:01:32.5]} 27. Rd1+
{[%clk 0:01:43.3]} 27... Kc4 {[%clk 0:01:32.7]} 28. Qd4# {[%clk 0:01:41.8]} 1-0

[Event "Late-Titled-Tuesday-Blitz-January-23-2024"]
[Site "Chess.com"]
[Date "2024.01.23"]
[Round "4"]
[White "ansko1999"]
[Black "ImportedItalianMaple"]
[Result "1-0"]
[WhiteElo "2702"]
[BlackElo "2430"]
[TimeControl "180+1"]
[EndTime "14:34:46 PST"]
[Termination "ansko1999 won by resignation"]

1. Nf3 {[%clk 0:03:00.9]} 1... Nf6 {[%clk 0:02:59.5]} 2. c4 {[%clk 0:02:59.9]}
2... b6 {[%clk 0:02:52]} 3. d4 {[%clk 0:02:58.5]} 3... Bb7 {[%clk 0:02:51.6]} 4.
Nc3 {[%clk 0:02:58.9]} 4... e6 {[%clk 0:02:49.4]} 5. Qc2 {[%clk 0:02:58.1]} 5...
c5 {[%clk 0:02:48.9]} 6. d5 {[%clk 0:02:51.7]} 6... exd5 {[%clk 0:02:44.3]} 7.
cxd5 {[%clk 0:02:52.3]} 7... Nxd5 {[%clk 0:02:21.8]} 8. g3 {[%clk 0:02:48.1]}
8... Be7 {[%clk 0:02:12.3]} 9. Qe4 {[%clk 0:02:27.2]} 9... Nxc3 {[%clk
0:01:34.7]} 10. Qxb7 {[%clk 0:02:20.9]} 10... Nc6 {[%clk 0:01:35.1]} 11. bxc3
{[%clk 0:02:19]} 11... a6 {[%clk 0:01:35.4]} 12. Rb1 {[%clk 0:01:49.6]} 12... b5
{[%clk 0:01:34.3]} 13. Ne5 {[%clk 0:01:28.2]} 13... Ra7 {[%clk 0:01:16.9]} 14.
Nxc6 {[%clk 0:01:24.7]} 14... Rxb7 {[%clk 0:01:17.1]} 15. Nxd8 {[%clk 0:01:25]}
1-0

[Event "Late-Titled-Tuesday-Blitz-January-23-2024"]
[Site "Chess.com"]
[Date "2024.01.23"]
[Round "4"]
[White "chessisveryfun1264"]
[Black "Grandmaster2B"]
[Result "0-1"]
[WhiteElo "2559"]
[BlackElo "2806"]
[TimeControl "180+1"]
[EndTime "14:34:56 PST"]
[Termination "Grandmaster2B won by resignation"]

1. e4 {[%clk 0:03:00.9]} 1... c6 {[%clk 0:03:00.2]} 2. d4 {[%clk 0:02:57.6]}
2... d5 {[%clk 0:03:00.8]} 3. e5 {[%clk 0:02:58.2]} 3... c5 {[%clk 0:02:59.2]}
4. dxc5 {[%clk 0:02:57.4]} 4... Nc6 {[%clk 0:02:59.7]} 5. Nf3 {[%clk 0:02:47.6]}
5... Bg4 {[%clk 0:02:58.6]} 6. Be2 {[%clk 0:02:48.2]} 6... Bxf3 {[%clk
0:02:56.5]} 7. Bxf3 {[%clk 0:02:49.1]} 7... e6 {[%clk 0:02:57.3]} 8. O-O {[%clk
0:02:47.9]} 8... Bxc5 {[%clk 0:02:52.1]} 9. Re1 {[%clk 0:02:47.6]} 9... Nge7
{[%clk 0:02:50.9]} 10. c4 {[%clk 0:02:36.6]} 10... dxc4 {[%clk 0:02:50.3]} 11.
Qa4 {[%clk 0:02:34.2]} 11... Qd4 {[%clk 0:02:26.7]} 12. Be3 {[%clk 0:02:27.6]}
12... Qxe5 {[%clk 0:02:26.5]} 13. Nc3 {[%clk 0:01:38.8]} 13... O-O {[%clk
0:02:08.4]} 14. Qxc4 {[%clk 0:01:31.4]} 14... Bxe3 {[%clk 0:02:05.9]} 15. Rxe3
{[%clk 0:01:32.3]} 15... Qa5 {[%clk 0:01:58.7]} 16. Rae1 {[%clk 0:01:28.2]}
16... Rad8 {[%clk 0:01:55.3]} 17. a3 {[%clk 0:01:10.8]} 17... a6 {[%clk
0:01:46]} 18. Qh4 {[%clk 0:00:59.7]} 18... Nf5 {[%clk 0:01:42.2]} 0-1

[Event "Late-Titled-Tuesday-Blitz-January-23-2024"]
[Site "Chess.com"]
[Date "2024.01.23"]
[Round "4"]
[White "stoleriu"]
[Black "Cluke86"]
[Result "1-0"]
[WhiteElo "2569"]
[BlackElo "2264"]
[TimeControl "180+1"]
[EndTime "14:34:56 PST"]
[Termination "stoleriu won by resignation"]

1. e4 {[%clk 0:03:00.9]} 1... e6 {[%clk 0:02:58.9]} 2. d4 {[%clk 0:03:01.1]}
2... d5 {[%clk 0:02:59.4]} 3. Nc3 {[%clk 0:03:02]} 3... Nf6 {[%clk 0:02:58.8]}
4. e5 {[%clk 0:03:02.4]} 4... Nfd7 {[%clk 0:02:57.2]} 5. f4 {[%clk 0:03:03.1]}
5... c5 {[%clk 0:02:57.2]} 6. Nf3 {[%clk 0:03:04]} 6... Nc6 {[%clk 0:02:57.1]}
7. Be3 {[%clk 0:03:04.7]} 7... Be7 {[%clk 0:02:55.1]} 8. Qd2 {[%clk 0:03:05.3]}
8... O-O {[%clk 0:02:54]} 9. g3 {[%clk 0:03:05.9]} 9... Qa5 {[%clk 0:02:51.5]}
10. Bg2 {[%clk 0:03:05.2]} 10... cxd4 {[%clk 0:02:48.5]} 11. Nxd4 {[%clk
0:03:06.1]} 11... Nxd4 {[%clk 0:02:45.6]} 12. Bxd4 {[%clk 0:03:06.2]} 12... Bc5
{[%clk 0:02:45.6]} 13. O-O {[%clk 0:03:06.3]} 13... Bxd4+ {[%clk 0:02:39.8]} 14.
Qxd4 {[%clk 0:03:07.2]} 14... Nb8 {[%clk 0:02:39.9]} 15. Kh1 {[%clk 0:03:04.6]}
15... Nc6 {[%clk 0:02:38.6]} 16. Qd2 {[%clk 0:03:03.9]} 16... Bd7 {[%clk
0:02:33.3]} 17. Rad1 {[%clk 0:03:03]} 17... Rac8 {[%clk 0:02:32]} 18. a3 {[%clk
0:02:58.6]} 18... Rfd8 {[%clk 0:02:25.9]} 19. Qe2 {[%clk 0:02:45.6]} 19... a6
{[%clk 0:02:16.9]} 20. f5 {[%clk 0:02:42.3]} 20... d4 {[%clk 0:02:14.5]} 21. Ne4
{[%clk 0:02:20.5]} 21... exf5 {[%clk 0:02:07.4]} 22. Nd6 {[%clk 0:02:20]} 22...
Qc5 {[%clk 0:01:40.5]} 23. Nxb7 {[%clk 0:02:13.2]} 23... Qb6 {[%clk 0:01:40.1]}
24. Nxd8 {[%clk 0:02:13.3]} 24... Rxd8 {[%clk 0:01:38.2]} 25. b4 {[%clk
0:02:09.6]} 25... Be6 {[%clk 0:01:33.8]} 26. Rd2 {[%clk 0:02:07.8]} 26... Ne7
{[%clk 0:01:32.1]} 27. Rfd1 {[%clk 0:02:07.8]} 27... h6 {[%clk 0:01:24.9]} 28.
c3 {[%clk 0:02:04.2]} 28... Nc6 {[%clk 0:01:20.3]} 29. cxd4 {[%clk 0:02:01.9]}
29... Rxd4 {[%clk 0:01:16.2]} 30. Rxd4 {[%clk 0:02:01.3]} 30... Nxd4 {[%clk
0:01:15.5]} 31. Qf2 {[%clk 0:02:01.6]} 1-0

[Event "Late-Titled-Tuesday-Blitz-January-23-2024"]
[Site "Chess.com"]
[Date "2024.01.23"]
[Round "4"]
[White "rikchessmx"]
[Black "only_strong_moves"]
[Result "1-0"]
[WhiteElo "2391"]
[BlackElo "2525"]
[TimeControl "180+1"]
[EndTime "14:35:05 PST"]
[Termination "rikchessmx won by resignation"]

1. e4 {[%clk 0:03:00.9]} 1... e6 {[%clk 0:02:59.5]} 2. d4 {[%clk 0:03:00.5]}
2... d5 {[%clk 0:02:58.9]} 3. Nc3 {[%clk 0:03:01.4]} 3... Bb4 {[%clk 0:02:58.3]}
4. e5 {[%clk 0:03:01.2]} 4... c5 {[%clk 0:02:58]} 5. a3 {[%clk 0:03:01.7]} 5...
Bxc3+ {[%clk 0:02:57.7]} 6. bxc3 {[%clk 0:03:02.6]} 6... Ne7 {[%clk 0:02:58]} 7.
Qg4 {[%clk 0:03:02.6]} 7... Qc7 {[%clk 0:02:58.5]} 8. Qxg7 {[%clk 0:03:02.8]}
8... Rg8 {[%clk 0:02:58.9]} 9. Qxh7 {[%clk 0:03:03.1]} 9... Nbc6 {[%clk
0:02:57.6]} 10. Ne2 {[%clk 0:03:03.6]} 10... cxd4 {[%clk 0:02:54.5]} 11. f4
{[%clk 0:03:03.6]} 11... dxc3 {[%clk 0:02:52]} 12. Qd3 {[%clk 0:03:01.2]} 12...
Bd7 {[%clk 0:02:40.4]} 13. h3 {[%clk 0:03:00]} 13... O-O-O {[%clk 0:02:37.3]}
14. Qxc3 {[%clk 0:02:59.7]} 14... d4 {[%clk 0:02:36.4]} 15. Qd3 {[%clk
0:02:58.4]} 15... Be8 {[%clk 0:02:26.5]} 16. Bd2 {[%clk 0:02:56.6]} 16... f6
{[%clk 0:02:23.6]} 17. exf6 {[%clk 0:02:55.4]} 17... Nd5 {[%clk 0:02:20.4]} 18.
g4 {[%clk 0:02:47.7]} 18... Bg6 {[%clk 0:02:16.9]} 19. Qc4 {[%clk 0:02:36.3]}
19... Nb6 {[%clk 0:01:47.2]} 20. Qxe6+ {[%clk 0:02:26.4]} 20... Kb8 {[%clk
0:01:47.2]} 21. f5 {[%clk 0:02:01.2]} 21... Rge8 {[%clk 0:01:46.4]} 22. Bf4
{[%clk 0:01:54.5]} 22... Ne5 {[%clk 0:01:38.9]} 23. Bxe5 {[%clk 0:01:49.8]}
23... Qxe5 {[%clk 0:01:36.6]} 24. Qxe5+ {[%clk 0:01:49.5]} 24... Rxe5 {[%clk
0:01:36.2]} 25. fxg6 {[%clk 0:01:48]} 1-0

[Event "Late-Titled-Tuesday-Blitz-January-23-2024"]
[Site "Chess.com"]
[Date "2024.01.23"]
[Round "4"]
[White "DvaHrasta"]
[Black "hsd2016"]
[Result "1-0"]
[WhiteElo "2483"]
[BlackElo "2286"]
[TimeControl "180+1"]
[EndTime "14:35:05 PST"]
[Termination "DvaHrasta won by resignation"]

1. c4 {[%clk 0:03:00.9]} 1... c6 {[%clk 0:02:45.6]} 2. e4 {[%clk 0:03:00.2]}
2... d5 {[%clk 0:02:44.2]} 3. exd5 {[%clk 0:03:01.1]} 3... cxd5 {[%clk
0:02:45.1]} 4. cxd5 {[%clk 0:03:01.5]} 4... Qxd5 {[%clk 0:02:45.2]} 5. Nc3
{[%clk 0:03:01.1]} 5... Qd8 {[%clk 0:02:45.1]} 6. d4 {[%clk 0:03:01.2]} 6... Nf6
{[%clk 0:02:44.9]} 7. d5 {[%clk 0:03:00.8]} 7... g6 {[%clk 0:02:44.2]} 8. Be2
{[%clk 0:02:59]} 8... Bg7 {[%clk 0:02:44.7]} 9. h4 {[%clk 0:02:59.2]} 9... O-O
{[%clk 0:02:45.4]} 10. h5 {[%clk 0:02:59.6]} 10... b6 {[%clk 0:02:43]} 11. hxg6
{[%clk 0:02:59.7]} 11... fxg6 {[%clk 0:02:43.6]} 12. Bh6 {[%clk 0:02:58.6]}
12... Bb7 {[%clk 0:02:43.1]} 13. Qd2 {[%clk 0:02:52.3]} 13... Nbd7 {[%clk
0:02:36.2]} 14. Nf3 {[%clk 0:02:47.3]} 14... Nc5 {[%clk 0:02:30.7]} 15. Bxg7
{[%clk 0:02:44.5]} 15... Kxg7 {[%clk 0:02:30.8]} 16. b4 {[%clk 0:02:37.6]} 16...
Ncd7 {[%clk 0:02:01.1]} 17. Ng5 {[%clk 0:02:35.4]} 17... Qc8 {[%clk 0:01:52.9]}
18. Ne6+ {[%clk 0:02:33.3]} 18... Kg8 {[%clk 0:01:52.8]} 19. Rc1 {[%clk
0:02:28.5]} 19... Rf7 {[%clk 0:01:40]} 20. Ng5 {[%clk 0:01:59.4]} 20... Rf8
{[%clk 0:01:34.3]} 21. Qe3 {[%clk 0:01:54]} 21... Qe8 {[%clk 0:01:19.3]} 22. Ne6
{[%clk 0:01:44.8]} 22... Nxd5 {[%clk 0:01:09.8]} 23. Nxd5 {[%clk 0:01:38.4]}
23... Bxd5 {[%clk 0:01:10.7]} 24. Nc7 {[%clk 0:01:36.1]} 24... Qf7 {[%clk
0:01:10.1]} 25. Nxd5 {[%clk 0:01:36.1]} 1-0